lending/lending_fUSD_20240509
["ID","MTS","AMOUNT","RATE_DAILY","PERIOD"]
[326748201,1715297486915,-718.96,0.00031232,8]
[326748202,1715297486924,-2337.83,0.00031232,8]
[326748203,1715297486934,-500.0,0.00031232,8]
[326748204,1715297486943,-500.0,0.00031232,8]
[326748205,1715297486952,-765.35,0.00031232,8]
[326748206,1715297486961,-409.41098559,0.00031232,8]
[326748207,1715297486971,-1265.93,0.00031232,8]
[326748208,1715297486980,-502.9,0.00031232,8]
[326748209,1715297486990,-888.22,0.00031232,8]
[326748210,1715297486999,-1538.92,0.00031232,8]
[326748211,1715297487009,-500.0,0.00031232,8]
[326748212,1715297487018,-1668.75,0.00031232,8]
[326748213,1715297487032,-500.0,0.00031232,8]
[326748214,1715297487041,-1116.57,0.00031232,8]
[326748215,1715297487050,-842.18,0.00031232,8]
[326748216,1715297487059,-1250.4,0.00031232,8]
[326748217,1715297487069,-1654.84,0.00031232,8]
[326748218,1715297487078,-500.0,0.00031232,8]
[326748219,1715297487087,-1344.41,0.00031232,8]
[326748220,1715297487097,-500.0,0.00031232,8]
[326748221,1715297487108,-500.0,0.00031232,8]
[326748222,1715297487117,-1915.45,0.00031232,8]
[326748223,1715297487127,-683.17,0.00031232,8]
[326748224,1715297487136,-641.12,0.00031232,8]
[326748225,1715297487145,-1857.39,0.00031232,8]
[326748226,1715297487155,-687.97,0.00031232,8]
[326748227,1715297487164,-1314.13,0.00031232,8]
[326748228,1715297487173,-961.48,0.00031232,8]
[326748229,1715297487183,-155.20035,0.00031232,7]
[326748230,1715297487192,-2774.58,0.00031232,8]
[326748231,1715297487201,-500.0,0.00031232,8]
[326748232,1715297487210,-500.0,0.00031232,8]
[326748233,1715297487219,-500.0,0.00031232,8]
[326748234,1715297487229,-1270.75,0.00031232,8]
[326748235,1715297487238,-3000.0,0.00031232,8]
[326748236,1715297487247,-705.0,0.00031232,8]
[326748237,1715297487256,-636.76,0.00031232,8]
[326748238,1715297487265,-1154.34,0.00031232,8]
[326748239,1715297487276,-2507.23,0.00031232,8]
[326748240,1715297487285,-756.92,0.00031232,8]
[326748241,1715297487294,-2178.56,0.00031232,8]
[326748242,1715297487304,-925.37,0.00031232,8]
[326748243,1715297487313,-500.0,0.00031232,8]
[326748244,1715297487322,-500.0,0.00031232,8]
[326748245,1715297487331,-151.0,0.00031232,7]
[326748246,1715297487341,-151.0,0.00031232,7]
[326748247,1715297487350,-500.0,0.00031232,8]
[326748248,1715297487359,-500.0,0.00031232,8]
[326748249,1715297487368,-624.36,0.00031232,8]
[326748250,1715297487378,-500.0,0.00031232,8]
[326748251,1715297487387,-1275.69,0.00031232,8]
[326748252,1715297487396,-2358.15,0.00031232,8]
[326748253,1715297487406,-646.74,0.00031232,8]
[326748254,1715297487415,-1187.26,0.00031232,8]
[326748255,1715297487425,-565.47,0.00031232,8]
[326748256,1715297487435,-1634.05,0.00031232,8]
[326748257,1715297487445,-3322.37,0.00031232,8]
[326748258,1715297487454,-630.81,0.00031232,8]
[326748259,1715297487464,-507.76,0.00031232,8]
[326748260,1715297487474,-2028.74,0.00031232,8]
[326748261,1715297487483,-500.0,0.00031232,8]
[326748262,1715297487493,-1292.29,0.00031232,8]
[326748263,1715297487502,-2622.15,0.00031232,8]
[326748264,1715297487512,-157.932236,0.00031232,7]
[326748265,1715297487521,-500.0,0.00031232,8]
[326748266,1715297487532,-157.932236,0.00031232,7]
[326748267,1715297487541,-500.0,0.00031232,8]
[326748268,1715297487550,-2351.92,0.00031232,8]
[326748269,1715297487559,-1625.02,0.00031232,8]
[326748270,1715297487568,-157.932236,0.00031232,7]
[326748271,1715297487578,-157.932236,0.00031232,7]
[326748272,1715297487588,-500.0,0.00031232,8]
[326748273,1715297487597,-500.0,0.00031232,8]
[326748274,1715297487607,-1675.77,0.00031232,8]
[326748275,1715297487616,-500.0,0.00031232,8]
[326748276,1715297487625,-1217.3,0.00031232,8]
[326748277,1715297487635,-151.0,0.00031232,7]
[326748278,1715297487644,-198.377144,0.00031232,7]
[326748279,1715297487654,-807.83,0.00031232,8]
[326748280,1715297487663,-500.0,0.00031232,8]
[326748281,1715297487673,-500.0,0.00031232,8]
[326748282,1715297487682,-185.15415045,0.00031232,8]
[326748283,1715297487692,-1072.38,0.00031232,8]
[326748284,1715297487701,-2861.03,0.00031232,8]
[326748285,1715297487711,-737.54,0.00031232,8]
[326748286,1715297487720,-500.0,0.00031232,8]
[326748287,1715297487730,-635.16,0.00031232,8]
[326748288,1715297487739,-500.0,0.00031232,8]
[326748289,1715297487748,-1723.47,0.00031232,8]
[326748290,1715297487758,-710.59,0.00031232,8]
[326748291,1715297487767,-500.0,0.00031232,8]
[326748292,1715297487779,-2265.73,0.00031232,8]
[326748293,1715297487788,-500.0,0.00031232,8]
[326748294,1715297487797,-2107.35,0.00031232,8]
[326748295,1715297487807,-1544.27,0.00031232,8]
[326748296,1715297487816,-247.54108698,0.00031232,8]
[326748297,1715297487826,-500.0,0.00031232,8]
[326748298,1715297487836,-3520.34,0.00031232,8]
[326748299,1715297487845,-1431.08,0.00031232,8]
[326748300,1715297487854,-500.0,0.00031232,2]
[326748301,1715297487863,-500.0,0.00031232,8]
[326748302,1715297487872,-500.0,0.00031232,8]
[326748303,1715297487882,-515.12,0.00031232,8]
[326748304,1715297487891,-1386.16,0.00031232,8]
[326748305,1715297487900,-500.0,0.00031232,8]
[326748306,1715297487909,-1371.64,0.00031232,8]
[326748307,1715297487919,-833.61,0.00031232,8]
[326748308,1715297487928,-1135.42,0.00031232,8]
[326748309,1715297487937,-500.0,0.00031232,8]
[326748310,1715297487946,-697.35,0.00031232,8]
[326748311,1715297487956,-1148.26,0.00031232,8]
[326748312,1715297487965,-570.78,0.00031232,8]
[326748313,1715297487974,-466.37407765,0.00031232,8]
[326748314,1715297487983,-1003.43,0.00031232,8]
[326748315,1715297487992,-500.0,0.00031232,8]
[326748316,1715297488003,-1271.35,0.00031232,8]
[326748317,1715297488012,-1107.12,0.00031232,8]
[326748318,1715297488021,-1705.53,0.00031232,8]
[326748319,1715297488036,-519.12,0.00031232,8]
[326748320,1715297488045,-500.0,0.00031232,8]
[326748321,1715297488054,-500.0,0.00031232,8]
[326748322,1715297488064,-500.0,0.00031232,8]
[326748323,1715297488074,-500.0,0.00031232,8]
[326748324,1715297488083,-514.31200192,0.00031232,8]
[326748325,1715297488092,-500.0,0.00031232,8]
[326748326,1715297488101,-500.0,0.00031232,8]
[326748327,1715297488111,-3395.6,0.00031232,8]
[326748328,1715297488120,-500.0,0.00031232,8]
[326748329,1715297488130,-500.0,0.00031232,8]
[326748330,1715297488139,-500.0,0.00031232,8]
[326748331,1715297488148,-500.0,0.00031232,8]
[326748332,1715297488158,-2406.31,0.00031232,8]
[326748333,1715297488167,-1956.6,0.00031232,8]
[326748334,1715297488176,-500.0,0.00031232,8]
[326748335,1715297488186,-500.0,0.00031232,8]
[326748336,1715297488196,-887.35,0.00031232,8]
[326748337,1715297488205,-500.0,0.00031232,8]
[326748338,1715297488216,-2873.61,0.00031232,8]
[326748339,1715297488225,-151.0,0.00031232,7]
[326748340,1715297488235,-151.0,0.00031232,7]
[326748341,1715297488245,-1893.29,0.00031232,8]
[326748342,1715297488255,-1000.0,0.00031232,8]
[326748343,1715297488265,-882.28,0.00031232,8]
[326748344,1715297488274,-2277.69,0.00031232,8]
[326748345,1715297488284,-500.0,0.00031232,8]
[326748346,1715297488293,-500.0,0.00031232,8]
[326748347,1715297488303,-935.53,0.00031232,8]
[326748348,1715297488312,-500.0,0.00031232,8]
[326748349,1715297488321,-522.83,0.00031232,8]
[326748350,1715297488330,-500.0,0.00031232,8]
[326748351,1715297488341,-1278.41,0.00031232,8]
[326748352,1715297488352,-825.67,0.00031232,8]
[326748353,1715297488361,-366.83561387,0.00031232,8]
[326748354,1715297488371,-500.0,0.00031232,8]
[326748355,1715297488380,-1430.53,0.00031232,8]
[326748356,1715297488390,-1823.72,0.00031232,8]
[326748357,1715297488399,-668.05,0.00031232,8]
[326748358,1715297488409,-500.0,0.00031232,8]
[326748359,1715297488418,-500.0,0.00031232,8]
[326748360,1715297488428,-1142.6,0.00031232,8]
[326748361,1715297488437,-1726.72,0.00031232,8]
[326748362,1715297488446,-1109.58,0.00031232,8]
[326748363,1715297488456,-1014.73,0.00031232,8]
[326748364,1715297488465,-500.0,0.00031232,8]
[326748365,1715297488475,-1440.2,0.00031232,8]
[326748366,1715297488484,-650.7,0.00031232,8]
[326748367,1715297488493,-500.0,0.00031232,8]
[326748368,1715297488503,-1201.47,0.00031232,8]
[326748369,1715297488513,-1085.28,0.00031232,8]
[326748370,1715297488523,-1198.9,0.00031232,8]
[326748371,1715297488534,-890.62,0.00031232,8]
[326748372,1715297488544,-500.0,0.00031232,8]
[326748373,1715297488554,-500.0,0.00031232,8]
[326748374,1715297488564,-500.0,0.00031232,8]
[326748375,1715297488573,-500.0,0.00031232,8]
[326748376,1715297488582,-395.38577008,0.00031232,8]
[326748377,1715297488591,-500.0,0.00031232,8]
[326748378,1715297488601,-950.51,0.00031232,8]
[326748379,1715297488610,-831.05,0.00031232,8]
[326748380,1715297488620,-500.0,0.00031232,8]
[326748381,1715297488630,-500.0,0.00031232,8]
[326748382,1715297488639,-1027.3,0.00031232,8]
[326748383,1715297488649,-500.0,0.00031232,8]
[326748384,1715297488659,-500.0,0.00031232,8]
[326748385,1715297488668,-500.0,0.00031232,8]
[326748386,1715297488678,-500.0,0.00031232,8]
[326748387,1715297488687,-1179.31,0.00031232,8]
[326748388,1715297488697,-500.0,0.00031232,8]
[326748389,1715297488706,-836.3,0.00031232,8]
[326748390,1715297488715,-500.0,0.00031232,8]
[326748391,1715297488725,-1418.73,0.00031232,8]
[326748392,1715297488734,-861.26,0.00031232,8]
[326748393,1715297488743,-1576.12,0.00031232,8]
[326748394,1715297488752,-500.0,0.00031232,8]
[326748395,1715297488762,-643.23493676,0.00031232,8]
[326748396,1715297488771,-500.0,0.00031232,8]
[326748397,1715297488781,-500.0,0.00031232,8]
[326748398,1715297488790,-500.0,0.00031232,8]
[326748399,1715297488801,-500.0,0.00031232,8]
[326748400,1715297488810,-500.0,0.00031232,8]
[326748401,1715297488819,-1503.77,0.00031232,8]
[326748402,1715297488830,-1281.56,0.00031232,8]
[326748403,1715297488841,-1467.72,0.00031232,8]
[326748404,1715297488851,-1578.77,0.00031232,8]
[326748405,1715297488861,-500.0,0.00031232,8]
[326748406,1715297488871,-467.71,0.00031232,8]
[326748407,1715297488882,-500.0,0.00031232,8]
[326748408,1715297488892,-1342.61,0.00031232,8]
[326748409,1715297488901,-743.91,0.00031232,8]
[326748410,1715297488910,-500.0,0.00031232,8]
[326748411,1715297488918,-738.78,0.00031232,8]
[326748412,1715297488927,-268.806236,0.00031232,7]
[326748413,1715297488936,-268.806236,0.00031232,7]
[326748414,1715297488946,-500.0,0.00031232,8]
[326748415,1715297488956,-500.0,0.00031232,8]
[326748416,1715297488967,-1826.72,0.00031232,8]
[326748417,1715297488976,-268.806236,0.00031232,7]
[326748418,1715297488986,-268.806236,0.00031232,7]
[326748419,1715297488997,-1576.13,0.00031232,8]
[326748420,1715297489007,-877.9,0.00031232,8]
[326748421,1715297489016,-500.0,0.00031232,8]
[326748422,1715297489030,-500.0,0.00031232,8]
[326748423,1715297489039,-507.87855972,0.00031232,8]
[326748424,1715297489049,-1244.47,0.00031232,8]
[326748425,1715297489062,-2093.7,0.00031232,8]
[326748426,1715297489074,-616.76,0.00031232,8]
[326748427,1715297489083,-500.0,0.00031232,8]
[326748428,1715297489094,-500.0,0.00031232,8]
[326748429,1715297489103,-500.0,0.00031232,8]
[326748430,1715297489114,-500.0,0.00031232,8]
[326748431,1715297489124,-725.76,0.00031232,8]
[326748432,1715297489134,-500.0,0.00031232,8]
[326748433,1715297489143,-683.02,0.00031232,8]
[326748434,1715297489152,-500.0,0.00031232,8]
[326748435,1715297489161,-1709.75,0.00031232,8]
[326748436,1715297489170,-1020.79,0.00031232,8]
[326748437,1715297489179,-1330.42,0.00031232,8]
[326748438,1715297489188,-885.37,0.00031232,8]
[326748439,1715297489198,-514.87,0.00031232,8]
[326748440,1715297489207,-1007.97,0.00031232,8]
[326748441,1715297489216,-500.0,0.00031232,8]
[326748442,1715297489225,-500.0,0.00031232,8]
[326748443,1715297489234,-151.0,0.00031232,7]
[326748444,1715297489244,-151.0,0.00031232,7]
[326748445,1715297489253,-2980.74,0.00031232,8]
[326748446,1715297489262,-2876.72,0.00031232,8]
[326748447,1715297489272,-500.0,0.00031232,8]
[326748448,1715297489281,-470.92333497,0.00031232,8]
[326748449,1715297489290,-1202.24,0.00031232,8]
[326748450,1715297489300,-500.0,0.00031232,8]
[326748451,1715297489309,-1473.97,0.00031232,8]
[326748452,1715297489318,-535.28,0.00031232,8]
[326748453,1715297489327,-500.0,0.00031232,8]
[326748454,1715297489336,-538.21,0.00031232,8]
[326748455,1715297489346,-235.171682,0.00031232,7]
[326748456,1715297489356,-2460.69,0.00031232,8]
[326748457,1715297489367,-235.171682,0.00031232,7]
[326748458,1715297489376,-500.0,0.00031232,8]
[326748459,1715297489386,-500.0,0.00031232,8]
[326748460,1715297489395,-940.88,0.00031232,8]
[326748461,1715297489404,-500.0,0.00031232,8]
[326748462,1715297489414,-1048.96,0.00031232,8]
[326748463,1715297489423,-235.171682,0.00031232,7]
[326748464,1715297489432,-566.84,0.00031232,8]
[326748465,1715297489442,-235.171686,0.00031232,7]
[326748466,1715297489451,-567.26,0.00031232,8]
[326748467,1715297489461,-1657.4,0.00031232,8]
[326748468,1715297489471,-954.46,0.00031232,8]
[326748469,1715297489481,-1041.5,0.00031232,8]
[326748470,1715297489490,-500.0,0.00031232,8]
[326748471,1715297489500,-500.0,0.00031232,8]
[326748472,1715297489510,-663.07,0.00031232,8]
[326748473,1715297489519,-831.97,0.00031232,8]
[326748474,1715297489528,-800.82,0.00031232,8]
[326748475,1715297489537,-4798.37,0.00031232,8]
[326748476,1715297489546,-500.0,0.00031232,8]
[326748477,1715297489555,-2107.25,0.00031232,8]
[326748478,1715297489565,-716.47,0.00031232,8]
[326748479,1715297489574,-2384.6,0.00031232,8]
[326748480,1715297489583,-500.0,0.00031232,8]
[326748481,1715297489592,-8798.95,0.00031232,8]
[326748482,1715297489601,-500.0,0.00031232,8]
[326748483,1715297489611,-500.0,0.00031232,8]
[326748484,1715297489621,-909.4,0.00031232,8]
[326748485,1715297489631,-500.0,0.00031232,8]
[326748486,1715297489641,-500.0,0.00031232,8]
[326748487,1715297489652,-885.27,0.00031232,8]
[326748488,1715297489662,-500.0,0.00031232,8]
[326748489,1715297489671,-3506.97,0.00031232,8]
[326748490,1715297489680,-1009.76,0.00031232,8]
[326748491,1715297489690,-821.09,0.00031232,8]
[326748492,1715297489699,-2623.17,0.00031232,8]
[326748493,1715297489708,-1462.41,0.00031232,8]
[326748494,1715297489717,-737.52,0.00031232,8]
[326748495,1715297489726,-932.66,0.00031232,8]
[326748496,1715297489735,-1357.62,0.00031232,8]
[326748497,1715297489744,-942.26,0.00031232,8]
[326748498,1715297489753,-151.0,0.00031232,7]
[326748499,1715297489762,-681.05,0.00031232,8]
[326748500,1715297489771,-151.0,0.00031232,7]
[326748501,1715297489782,-500.0,0.00031232,8]
[326748502,1715297489792,-500.0,0.00031232,8]
[326748503,1715297489802,-1012.3,0.00031232,8]
[326748504,1715297489811,-500.0,0.00031232,8]
[326748505,1715297489821,-4646.17,0.00031232,8]
[326748506,1715297489830,-1356.54,0.00031232,8]
[326748507,1715297489839,-500.0,0.00031232,8]
[326748508,1715297489849,-42011.28,0.00031232,8]
[326748509,1715297489858,-599.25,0.00031232,8]
[326748510,1715297489868,-500.0,0.00031232,8]
[326748511,1715297489877,-500.0,0.00031232,8]
[326748512,1715297489886,-500.0,0.00031232,8]
[326748513,1715297489896,-807.72,0.00031232,8]
[326748514,1715297489905,-2159.75,0.00031232,8]
[326748515,1715297489914,-4089.52,0.00031232,8]
[326748516,1715297489924,-9288.02,0.00031232,8]
[326748517,1715297489934,-1792.62,0.00031232,8]
[326748518,1715297489943,-3984.95,0.00031232,8]
[326748519,1715297489953,-151.0,0.00031232,7]
[326748520,1715297489963,-151.0,0.00031232,7]
[326748521,1715297489973,-2083.25,0.00031232,8]
[326748522,1715297489983,-2610.89,0.00031232,8]
[326748523,1715297489993,-1682.1,0.00031232,8]
[326748524,1715297490002,-500.0,0.00031232,8]
[326748525,1715297490012,-500.0,0.00031232,8]
[326748526,1715297490024,-661.9,0.00031232,8]
[326748527,1715297490036,-24129.0,0.00031232,8]
[326748528,1715297490046,-500.0,0.00031232,8]
[326748529,1715297490056,-4279.15,0.00031232,8]
[326748530,1715297490065,-8213.78,0.00031232,8]
[326748531,1715297490075,-500.0,0.00031232,8]
[326748532,1715297490085,-500.0,0.00031232,8]
[326748533,1715297490095,-5534.17,0.00031232,8]
[326748534,1715297490104,-500.0,0.00031232,8]
[326748535,1715297490114,-1539.92,0.00031232,8]
[326748536,1715297490123,-3697.77,0.00031232,8]
[326748537,1715297490133,-2664.73,0.00031232,8]
[326748538,1715297490143,-1284.31,0.00031232,8]
[326748539,1715297490152,-525.3,0.00031232,8]
[326748540,1715297490161,-822.54,0.00031232,8]
[326748541,1715297490171,-1445.3,0.00031232,8]
[326748542,1715297490180,-877.33,0.00031232,8]
[326748543,1715297490189,-500.0,0.00031232,8]
[326748544,1715297490199,-1652.71,0.00031232,8]
[326748545,1715297490208,-2865.81,0.00031232,8]
[326748546,1715297490218,-6791.83,0.00031232,8]
[326748547,1715297490227,-2796.61,0.00031232,8]
[326748548,1715297490237,-500.0,0.00031232,8]
[326748549,1715297490246,-7951.88,0.00031232,8]
[326748550,1715297490256,-1471.75,0.00031232,8]
[326748551,1715297490265,-607.05,0.00031232,8]
[326748552,1715297490275,-786.29,0.00031232,8]
[326748553,1715297490285,-965.16,0.00031232,8]
[326748554,1715297490295,-895.97,0.00031232,8]
[326748555,1715297490304,-1044.27,0.00031232,8]
[326748556,1715297490314,-500.0,0.00031232,8]
[326748557,1715297490323,-500.0,0.00031232,8]
[326748558,1715297490334,-4048.03,0.00031232,8]
[326748559,1715297490344,-500.0,0.00031232,8]
[326748560,1715297490354,-3111.48,0.00031232,8]
[326748561,1715297490363,-3260.6,0.00031232,8]
[326748562,1715297490373,-3705.69,0.00031232,8]
[326748563,1715297490382,-9821.44,0.00031232,8]
[326748564,1715297490392,-3885.62,0.00031232,8]
[326748565,1715297490401,-2000.5,0.00031232,8]
[326748566,1715297490411,-500.0,0.00031232,8]
[326748567,1715297490421,-1184.08,0.00031232,8]
[326748568,1715297490430,-500.0,0.00031232,8]
[326748569,1715297490441,-859.51,0.00031232,8]
[326748570,1715297490450,-3407.17,0.00031232,8]
[326748571,1715297490460,-500.0,0.00031232,8]
[326748572,1715297490470,-3424.17,0.00031232,8]
[326748573,1715297490480,-500.0,0.00031232,8]
[326748574,1715297490489,-500.0,0.00031232,8]
[326748575,1715297490499,-2905.29,0.00031232,8]
[326748576,1715297490509,-151.0,0.00031232,7]
[326748577,1715297490519,-151.0,0.00031232,7]
[326748578,1715297490528,-374.204766,0.00031232,8]
[326748579,1715297491154,-869.695234,0.00031232,8]
[326748580,1715297491164,-4070.47,0.00031232,8]
[326748581,1715297491174,-17571.32,0.00031232,8]
[326748582,1715297491184,-500.0,0.00031232,8]
[326748583,1715297491193,-1205.11,0.00031232,8]
[326748584,1715297491203,-6018.88,0.00031232,8]
[326748585,1715297491213,-605.79123153,0.00031232,8]
[326748586,1715297491223,-7657.45,0.00031232,8]
[326748587,1715297491232,-500.0,0.00031232,8]
[326748588,1715297491242,-514.34863171,0.00031232,8]
[326748589,1715297491251,-500.0,0.00031232,8]
[326748590,1715297491261,-761.01,0.00031232,8]
[326748591,1715297491271,-1297.36,0.00031232,8]
[326748592,1715297491282,-1931.16,0.00031232,8]
[326748593,1715297491292,-500.0,0.00031232,8]
[326748594,1715297491302,-3820.67,0.00031232,8]
[326748595,1715297491311,-515.62,0.00031232,8]
[326748596,1715297491322,-11526.79,0.00031232,8]
[326748597,1715297491331,-1422.49,0.00031232,8]
[326748598,1715297491341,-151.0,0.00031232,7]
[326748599,1715297491351,-151.0,0.00031232,7]
[326748600,1715297491361,-11636.5,0.00031232,8]
[326748601,1715297491371,-3441.16,0.00031232,8]
[326748602,1715297491381,-1992.01,0.00031232,8]
[326748603,1715297491390,-958.86,0.00031232,8]
[326748604,1715297491400,-500.0,0.00031232,8]
[326748605,1715297491411,-2698.47,0.00031232,8]
[326748606,1715297491421,-500.0,0.00031232,8]
[326748607,1715297491431,-2513.83,0.00031232,8]
[326748608,1715297491440,-2712.53,0.00031232,8]
[326748609,1715297491450,-3209.81,0.00031232,8]
[326748610,1715297491459,-1524.4,0.00031232,8]
[326748611,1715297491469,-771.73,0.00031232,8]
[326748612,1715297491479,-1891.66,0.00031232,8]
[326748613,1715297491489,-2089.49,0.00031232,8]
[326748614,1715297491498,-4269.46,0.00031232,8]
[326748615,1715297491508,-2084.1,0.00031232,8]
[326748616,1715297491519,-500.0,0.00031232,8]
[326748617,1715297491531,-500.0,0.00031232,8]
[326748618,1715297491541,-2378.27,0.00031232,8]
[326748619,1715297491550,-50507.86,0.00031232,8]
[326748620,1715297491561,-15302.95,0.00031232,8]
[326748621,1715297491571,-552.9,0.00031232,8]
[326748622,1715297491582,-500.0,0.00031232,8]
[326748623,1715297491592,-536.43454115,0.00031232,8]
[326748624,1715297491602,-697.09,0.00031232,8]
[326748625,1715297491612,-509.79,0.00031232,8]
[326748626,1715297491622,-507.62,0.00031232,8]
[326748627,1715297491632,-1916.07,0.00031232,8]
[326748628,1715297491642,-1022.8,0.00031232,8]
[326748629,1715297491927,-1810.67,0.00031232,8]
[326748630,1715297491960,-827.45,0.00031232,8]
[326748631,1715297491970,-23960.66,0.00031232,8]
[326748632,1715297491980,-1548.17,0.00031232,8]
[326748633,1715297491990,-500.0,0.00031232,8]
[326748634,1715297491999,-776.59,0.00031232,8]
[326748635,1715297492009,-921.62,0.00031232,8]
[326748636,1715297492018,-4201.18,0.00031232,8]
[326748637,1715297492031,-831.85,0.00031232,8]
[326748638,1715297492040,-1268.68,0.00031232,8]
[326748639,1715297492050,-2661.61,0.00031232,8]
[326748640,1715297492061,-883.21,0.00031232,8]
[326748641,1715297492070,-604.81,0.00031232,8]
[326748642,1715297492080,-2870.33,0.00031232,8]
[326748643,1715297492090,-2895.77,0.00031232,8]
[326748644,1715297492099,-2751.49,0.00031232,8]
[326748645,1715297492109,-1548.06,0.00031232,8]
[326748646,1715297492119,-2145.57,0.00031232,8]
[326748647,1715297492129,-4417.39,0.00031232,8]
[326748648,1715297492139,-500.0,0.00031232,8]
[326748649,1715297492148,-1081.29,0.00031232,8]
[326748650,1715297492158,-1059.72,0.00031232,8]
[326748651,1715297492167,-1560.23,0.00031232,8]
[326748652,1715297492176,-1385.06,0.00031232,8]
[326748653,1715297492186,-3573.92,0.00031232,8]
[326748654,1715297492195,-3784.22,0.00031232,8]
[326748655,1715297492204,-588.39,0.00031232,8]
[326748656,1715297492214,-20009.53,0.00031232,8]
[326748657,1715297492223,-826.85,0.00031232,8]
[326748658,1715297492232,-2138.97,0.00031232,8]
[326748659,1715297492242,-1271.3,0.00031232,8]
[326748660,1715297492257,-2995.03,0.00031232,8]
[326748661,1715297492266,-954.9,0.00031232,8]
[326748662,1715297492276,-3258.26,0.00031232,8]
[326748663,1715297492286,-1150.69,0.00031232,8]
[326748664,1715297492295,-1439.66,0.00031232,8]
[326748665,1715297492305,-3200.62,0.00031232,8]
[326748666,1715297492314,-653.8,0.00031232,8]
[326748667,1715297492323,-500.0,0.00031232,8]
[326748668,1715297492333,-851.94,0.00031232,8]
[326748669,1715297492342,-516.46412551,0.00031232,8]
[326748670,1715297492351,-1486.95,0.00031232,7]
[326748671,1715297492361,-910.6,0.00031232,8]
[326748672,1715297492370,-1343.14,0.00031232,8]
[326748673,1715297492380,-6123.7,0.00031232,8]
[326748674,1715297492389,-980.1750739,0.00031232,8]
[326748675,1715297492402,-7912.1249261,0.00031232,8]
[326748676,1715297492412,-2737.43,0.00031232,8]
[326748677,1715297492421,-3321.03,0.00031232,8]
[326748678,1715297492431,-1488.49,0.00031232,8]
[326748679,1715297492440,-11644.59,0.00031232,8]
[326748680,1715297492450,-4295.29,0.00031232,8]
[326748681,1715297492459,-500.0,0.00031232,8]
[326748682,1715297492468,-500.0,0.00031232,8]
[326748683,1715297492478,-1794.62,0.00031232,8]
[326748684,1715297492487,-500.0,0.00031232,8]
[326748685,1715297492497,-500.0,0.00031232,8]
[326748686,1715297492506,-1745.83,0.00031232,8]
[326748687,1715297492516,-500.0,0.00031232,8]
[326748688,1715297492525,-5323.44406875,0.00031232,8]
[326748689,1715297492537,-724.04593125,0.00031232,8]
[326748690,1715297492547,-3941.16,0.00031232,8]
[326748691,1715297492556,-564.56,0.00031232,8]
[326748692,1715297492566,-556.15,0.00031232,7]
[326748693,1715297492576,-500.0,0.00031232,8]
[326748694,1715297492585,-2148.08,0.00031232,8]
[326748695,1715297492595,-525.22,0.00031232,8]
[326748696,1715297492604,-3524.78406875,0.00031232,8]
[326748697,1715297493153,-346.32360483,0.00029999,2]
[326748698,1715297493165,-214.26093526,0.00030136,4]
[326748699,1715297493179,-976.68977929,0.00030136,4]
[326748700,1715297493190,-2830.02928545,0.00030136,4]